{"text_format":"1","workbook":"xlsx","n_sheets":5,"sheets":["Admissibilité des coûts","1. Budget et Plan de travail","2. Sources de financement","Phases","Other examples"],"not_rendered":{"charts":0,"images":0,"macros":1,"external_links":0,"defined_names":22,"comments":0,"pivot_tables":0},"unopened":[],"bounds":{"document_bytes":16777216,"sheet_cells":100000,"rows_first":2000,"rows_last":500,"rows_between":2000,"halvings":0,"cell_chars":16384,"cell_head_chars":4096},"cells_cut":0,"cells_raw":0,"read":"whole","date_system":"1900"}

{"sheet":"Admissibilité des coûts","index":0,"n_rows":24,"n_cols":5,"rows_kept":24,"cut":false,"hidden":false,"merged":[]}
["Plan de travail et budget – Offre de financement du Programme de gestion des actifs municipaux"]
["Coûts admissibles et non admissibles "]
["Ce tableau décrit les coûts admissibles et, plus particulièrement, les coûts non admissibles au financement de contrepartie dans le cadre du Programme de gestion des actifs municipaux. "]
["Veuillez noter que les définitions et l’admissibilité des coûts peuvent varier selon les programmes de la FCM."]
["Remarque : Si votre demande est approuvée, les dépenses admissibles doivent être :"]
["·    des coûts décaissés par le demandeur principal – les apports en nature ne sont pas admissibles;"]
["·    un élément intégral et essentiel du projet, nécessaire pour aider à atteindre les objectifs du projet;"]
["·    réellement et raisonnablement engagées, conformément aux normes de l’industrie applicables;"]
["·    appuyées par des documents vérifiables permettant d’examiner les coûts réels engagés, l’admissibilité de l’activité réalisée et le niveau d’effort requis. "]
[]
["La FCM se réserve le droit de vérifier les états financiers et les dépenses engagées à une date ultérieure, étant donné que l’audit des coûts soumis dans une demande de décaissement ne se fera pas dans le cours normal des activités. "]
["Veuillez donc conserver pendant au moins six ans les comptes et les registres financiers, y compris, sans s’y limiter, les contrats, les factures, les états financiers, les reçus, les feuilles de temps et les pièces justificatives."]
["Catégorie de coûts","Coûts admissibles","Coûts non admissibles"]
["1) Avant la demande","S. o.","• Toute dépense engagée avant la date de dépenses admissibles de la FCM \n• Les dépenses engagées pour formuler la proposition ou la demande"]
["2) Dépenses administratives et frais généraux","Dépenses administratives qui sont directement liées au projet et qui ont été engagées, notamment :\n                                                \n• les dépenses de communication (p. ex. télécopies ou appels interurbains)\n• les services d’impression ou de photocopie externes\n• l’acquisition de documents utilisés exclusivement à l’égard du projet\n• la traduction de documents\n• les dépenses de transport, d’expédition et de messagerie pour la livraison d’éléments nécessaires au projet\n• la conception et la production de produits de communication visant à promouvoir les résultats du projet et les avantages pour le public","Frais généraux engagés dans le cours normal des affaires, dont :\n\n• les locaux à bureaux, les commissions immobilières et les fournitures\n• les charges de financement et les paiements d’intérêt\n• les articles promotionnels\n• les permis ou certifications\n• la publicité, la création de sites Web, les documents pédagogiques sur le projet ou les dépenses visant à diffuser les produits de communication sur le projet\n• les frais de représentation (aliments et boissons, alcool, divertissement, etc.)",null,"               "]
["3) Dépenses en immobilisations","Logiciels pour la gestion des actifs \n\nRemarque : La contribution de la FCM à cette dépense ne peut pas dépasser 50 % de la contribution totale de la FCM pour le projet. ","Toutes les autres dépenses en immobilisations ou charges d’amortissement"]
["4) Location d’équipement","• Location d’outils et d’équipement\n• Dépenses d’exploitation connexes, comme le carburant et les frais d’entretien","Location d’outils ou d’équipement liés aux activités courantes"]
["5) En nature","S. o.","Tout bien et service reçu sous forme de don"]
["6) Formation","• Dépenses rattachées à l’accès à des documents de référence, comme des normes, des modèles et des boîtes d’outils\n• Dépenses associées à la participation à des séances de formation (offertes à l’externe) ou à l’offre de formation à l’interne","Tous frais de représentation, comme :\n\n• les aliments et les boissons\n• l’alcool\n• les prix de présence\n• les divertissements\n• la musique\n• les décorations\n• les fleurs et les centres de table\n• etc."]
["7) Services professionnels et (ou) techniques","Honoraires de consultants techniques, de professionnels et de sous-traitants engagés en soutien aux activités admissibles","• Dépenses rattachées aux activités courantes qui ne sont pas liées au projet \n• Honoraires d’avocat"]
["8) Rémunération du personnel","Taux journalier actuellement versé par le Bénéficiaire admissible à ses employés au Canada pour le temps consacré à la mise en œuvre du projet. \n\nLe taux journalier par employé comprend ce qui suit :\n\n    a) rémunération directe : montant actuel et justifiable versé par le Bénéficiaire admissible à ses employés, conformément à l’échelle salariale du Bénéficiaire admissible, à titre de rémunération régulière, excluant les heures supplémentaires et les primes;\n    b) avantages sociaux : conformément aux politiques du Bénéficiaire admissible, comme suit :\n            i. avantages sociaux liés aux congés (calculé au prorata du pourcentage annuel [%] des heures consacrées à la mise en œuvre du projet) : nombre de jours permis devant être payés par le Bénéficiaire admissible pour les absences payées suivantes : jours fériés et vacances annuelles et prestations payées : sommes actuelles versées par le Bénéficiaire admissible pour les prestations payées (calculé au prorata du pourcentage annuel [%] des heures consacrées à la mise en œuvre du projet) : la contribution du Bénéficiaire admissible à l’assurance-emploi et aux régimes de rémunération des travailleurs (s’il y a lieu), à l’assurance soins de santé et médicale, à l’assurance-vie collective ou à d’autres prestations obligatoires du gouvernement.\n\nRemarque : Les coûts de la main-d’œuvre doivent être documentés de façon à respecter les normes d’audit relatives à la vérification de l’admissibilité des coûts et du niveau d’effort.\n","• Contribution de service en nature\n• Salaires des participants\n• Dépenses liées aux activités courantes\n• Heures supplémentaires\n• Primes et rémunération au rendement\n• Avantages sociaux, comme :\no congés de maladie\no régime de retraite\no autres avantages sociaux ne faisant pas partie des dépenses admissibles\n• Coûts liés aux activités courantes ou aux autres activités commerciales qui ne sont pas spécifiquement nécessaires au projet \n• Salaires du personnel qui reçoit une formation ou assiste aux activités d’apprentissage\n• Frais de cotisation ou d’adhésion à une association professionnelle\n"]
["9) Fournitures et matériaux","Fournitures et matériaux nécessaires à l’exécution du projet ","Dépenses liées aux activités courantes"]
["10) Taxes","La tranche de la taxe de vente provinciale/harmonisée et de la taxe sur les produits et services pour laquelle votre organisation n’a pas droit à un remboursement","La tranche de la taxe de vente provinciale/harmonisée et de la taxe sur les produits et services pour laquelle votre organisation peut obtenir un remboursement, et toute autre dépense qui peut être remboursée\n"]
["11) Déplacement et hébergement","Pour les personnes en situation de déplacement (personnes qui se déplacent à plus de 16 km de leur lieu de travail assigné en empruntant la route la plus directe, sûre et praticable) :\n\n• Frais de déplacement (voyages) et frais connexes pour les partenaires, les conférenciers et les conseillers en mise en œuvre dans la mesure où les tarifs liés au déplacement et à l’hébergement sont conformes aux lignes directrices données par le Conseil du Trésor du Canada, et dans la mesure où le déplacement est nécessaire à l’exécution du projet; voir le site www.canada.ca/fr/secretariat-conseil-tresor/services/deplacements-reinstallation/voyages-affaires-gouvernement.html \n\n• Lorsque les circonstances le justifient, les frais de déplacement des participants peuvent être réclamés avec l’autorisation écrite préalable de la FCM. En aucun cas les honoraires des participants ne seront remboursés. ","Tous frais de déplacement qui ne sont pas payés conformément à la Directive sur les voyages du Conseil national mixte."]

{"sheet":"1. Budget et Plan de travail","index":1,"n_rows":37,"n_cols":8,"rows_kept":37,"cut":false,"hidden":false,"merged":[]}
["Plan de travail et budget – Offre de financement du Programme de gestion des actifs municipaux",null,null,null,null,null,null,"Instructions"]
["Demandeur principal :",null,null,null,null,null,null,"Raison sociale de votre organisation."]
["Titre du projet :",null,null,null,null,null,null,"Titre décrivant votre projet en 10 mots ou moins."]
["Activité",null,"Date de début","Date de fin","Coûts admissibles ($)","Coûts non admissibles ($)","Coûts totaux ($)","\n"]
["Activité 1 :  (veuillez insérer le nom de l’activité)",null,"jj/mm/aaaa","jj/mm/aaaa",null,null,null,"Notes : Les activités doivent être les mêmes que celles figurant à la section C du formulaire de demande. L’échéancier du projet ne peut pas dépasser 11 mois."]
["[Ajouter description de tâche ici]",null,null,null,0,0,{"$f":"E6+F6","v":0},"Décrire les étapes qui seront entreprises afin d’accomplir l’activité. Assurez-vous de fournir suffisamment de renseignements pour permettre au lecteur de comprendre ce que vous ferez pour obtenir les résultats attendus indiqués dans le formulaire de demande, et qui réalisera le travail.\n"]
["[Ajouter description de tâche ici]",null,null,null,0,0,0]
["[Ajouter description de tâche ici]",null,null,null,0,0,0]
["[Ajouter description de tâche ici]",null,null,null,0,0,0]
["[Ajouter description de tâche ici]",null,null,null,0,0,0]
["Activité 1 – Totaux partiels",null,null,null,{"$f":"SUM(E6:E10)","v":0},{"$f":"SUM(F6:F10)","v":0},{"$f":"SUM(G6:G10)","v":0}]
["Activité 2 : (veuillez insérer le nom de l’activité)",null,"jj/mm/aaaa","jj/mm/aaaa",null,null,null,"Si vous n’avez qu’une seule activité, les cellules restantes demeureront vierges. "]
["[Ajouter description de tâche ici]",null,null,null,0,0,{"$f":"E13+F13","v":0}]
["[Ajouter description de tâche ici]",null,null,null,0,0,0]
["[Ajouter description de tâche ici]",null,null,null,0,0,0]
["[Ajouter description de tâche ici]",null,null,null,0,0,0]
["[Ajouter description de tâche ici]",null,null,null,0,0,0]
["Activité 2 – Totaux partiels",null,null,null,{"$f":"SUM(E13:E17)","v":0},{"$f":"SUM(F13:F17)","v":0},{"$f":"SUM(G13:G17)","v":0}]
["Activité 3 : (veuillez insérer le nom de l’activité)",null,"jj/mm/aaaa","jj/mm/aaaa"]
["[Ajouter description de tâche ici]",null,null,null,0,0,{"$f":"E20+F20","v":0}]
["[Ajouter description de tâche ici]",null,null,null,0,0,{"$f":"E21+F21","v":0}]
["[Ajouter description de tâche ici]",null,null,null,0,0,0]
["[Ajouter description de tâche ici]",null,null,null,0,0,0]
["[Ajouter description de tâche ici]",null,null,null,0,0,0]
["Activité 3 – Totaux partiels",null,null,null,{"$f":"SUM(E20:E24)","v":0},{"$f":"SUM(F20:F24)","v":0},{"$f":"SUM(G20:G24)","v":0}]
["Coûts totaux",null,null,null,{"$f":"SUM(E6:E10,E13:E17,E20:E24)","v":0},{"$f":"SUM(F6:F10,F13:F17,F20:F24)","v":0},{"$f":"SUM(E26,F26)","v":0}]
[]
[null,null,null,"Coûts totaux admissibles",null,null,{"$f":"E26","v":0}]
[]
["Nota : Cliquer sur le bouton « Calculer le budget » fera arrondir les montants au 100 $ près."]
[]
[]
["Coûts éventuels : Avez-vous inclus une marge pour des coûts éventuels pour certains ou pour l’ensemble des coûts relatifs à vos tâches? Veuillez expliquer.",null,null,null,null,null,null,"Les coûts éventuels ne sont pas obligatoires. "]
["[Ajouter une explication des coûts éventuels ici]"]
[]
["Autres notes :"]
["[Ajouter tout autre renseignement pertinent au sujet du budget et du plan de travail ici]"]

{"sheet":"2. Sources de financement","index":2,"n_rows":21,"n_cols":6,"rows_kept":21,"cut":false,"hidden":false,"merged":[]}
["Sources de financement"]
["Directives\n"]
["Utilisez le tableau ci-dessous pour indiquer comment vous couvrirez tous les coûts liés au projet proposé. "]
["Le total de toutes les sources de financement doit être égal aux coûts totaux du projet (admissibles + non admissibles) figurant dans votre tableau Plan de travail et budget (onglet 1)."]
[]
["Les sources de financement additionnelles peuvent comprendre les contributions en espèces de votre organisation et d’autres sources de financement public ou privé."]
[]
["La FCM offre des subventions qui peuvent aller jusqu’à 80 % des coûts admissibles, jusqu’à concurrence de 50 000 $, pour entreprendre les activités admissibles. "]
["Le tableur calculera automatiquement la subvention maximale admissible selon les coûts totaux admissibles définis dans le budget."]
["Source de financement","Description","Confirmé (O/N)","Date d’engagement\nJJ-MM-AAAA","Montant ($)","Pourcentage du budget total"]
["Subvention de la FCM","Subvention","N",null,{"$f":"'1. Budget et Plan de travail'!G28*0.8","v":0},{"$f":"E11/$E$20","v":{"$error":"#DIV/0!"}}]
["Source de financement additionnelle",null,null,null,0,{"$error":"#DIV/0!"}]
["Source de financement additionnelle",null,null,null,0,{"$error":"#DIV/0!"}]
["Source de financement additionnelle",null,null,null,0,{"$error":"#DIV/0!"}]
["Source de financement additionnelle",null,null,null,0,{"$error":"#DIV/0!"}]
["Source de financement additionnelle",null,null,null,0,{"$error":"#DIV/0!"}]
["Financement total :",null,null,null,{"$f":"SUM(E11:E16)","v":0}]
["[Doit être égal aux coûts totaux du budget, indiqués à la ligne 20 ci-dessous]"]
[]
[null,null,"Coûts totaux du budget",null,{"$f":"'1. Budget et Plan de travail'!G26","v":0}]
[null,null,"Coûts totaux admissibles du budget",null,{"$f":"'1. Budget et Plan de travail'!G28","v":0}]

{"sheet":"Phases","index":3,"n_rows":10,"n_cols":1,"rows_kept":10,"cut":false,"hidden":true,"merged":[]}
["Phases for Feasibility Studies"]
[]
["Phase A: Develop evaluation framework"]
["The first phase is to identify the evaluation criteria and methods, as well as the performance measures to be evaluated. The evaluation criteria may be based on lifecycle, triple-bottom-line, cost-benefit, or another type of analysis. If a task has already been completed, please specify this."]
["Phase B: Conduct study"]
["This phase entails assessing and analyzing the technical and financial feasibility and environmental impacts of implementing the municipal environmental project. A municipal environmental project is a project that responds to a municipal need and contributes to cleaner air, water, and/or soil, and/or reduces greenhouse gas emissions. Social and economic impacts of the project should also be considered. Depending on the study, you may be evaluating just one option, or a range of options."]
["Phase C: Evaluate and make recommendations"]
["In this phase, tasks should include evaluating the results, selecting the option(s) that meet(s) the established evaluation criteria, formulating recommendations and identifying next steps. In some cases, it may be appropriate to develop a conceptual design, or an implementation strategy, based on the results obtained and the recommendations made as a result."]
["Phase D: Reporting"]
["The last phase includes preparing a final version of the feasibility study, and obtaining council approval for it."]

{"sheet":"Other examples","index":4,"n_rows":93,"n_cols":11,"rows_kept":93,"cut":false,"hidden":true,"merged":[[5,0,5,3],[0,0,0,6],[1,1,1,6],[2,1,2,6],[3,0,3,1],[4,0,4,1],[17,0,17,5],[6,0,6,3],[7,0,7,3],[8,0,8,3],[9,0,9,3],[10,0,10,3],[11,0,11,3],[12,0,12,3],[13,0,13,3],[14,0,14,3],[15,0,15,3],[16,0,16,3],[29,0,29,5],[18,0,18,1],[19,0,19,3],[20,0,20,3],[21,0,21,3],[22,0,22,3],[23,0,23,3],[24,0,24,3],[25,0,25,3],[26,0,26,3],[27,0,27,3],[28,0,28,3],[41,0,41,5],[30,0,30,1],[31,0,31,3],[32,0,32,3],[33,0,33,3],[34,0,34,3],[35,0,35,3],[36,0,36,3],[37,0,37,3],[38,0,38,3],[39,0,39,3],[40,0,40,3],[53,0,53,5],[42,0,42,1],[43,0,43,3],[44,0,44,3],[45,0,45,3],[46,0,46,3],[47,0,47,3],[48,0,48,3],[49,0,49,3],[50,0,50,3],[51,0,51,3],[52,0,52,3],[65,0,65,5],[54,0,54,1],[55,0,55,3],[56,0,56,3],[57,0,57,3],[58,0,58,3],[59,0,59,3],[60,0,60,3],[61,0,61,3],[62,0,62,3],[63,0,63,3],[64,0,64,3],[77,0,77,5],[66,0,66,1],[67,0,67,3],[68,0,68,3],[69,0,69,3],[70,0,70,3],[71,0,71,3],[72,0,72,3],[73,0,73,3],[74,0,74,3],[75,0,75,3],[76,0,76,3],[88,0,88,6],[89,0,89,6],[91,0,91,6],[92,0,92,6],[78,0,78,3],[79,0,79,3],[80,0,80,3],[81,0,81,3],[83,4,83,5],[85,1,86,4]]}
["WORK PLAN AND BUDGET - Feasibility Studies"]
["Lead Applicant:"]
["Project title:"]
["Phases",null,"Start date:","End date:","Eligible Cost ($)","Ineligible Cost ($)","Total Cost ($)"]
["Milestone 1 : Start-up",null,"mm/yyyy","mm/yyyy"]
["[Add task description here]",null,null,null,null,null,{"$f":"E6+F6","v":0}]
["[Add task description here]",null,null,null,null,null,{"$f":"E7+F7","v":0}]
["Develop evaluation framework",null,null,null,null,null,51401]
["Initial consultation",null,null,null,null,null,51151]
["Hiring of consultants",null,null,null,null,null,5454]
["dddggdfbd",null,null,null,null,null,{"$f":"E11+F11","v":0}]
["[Add task description here]",null,null,null,null,null,0]
["[Add task description here]",null,null,null,null,null,0]
["[Add task description here]",null,null,null,null,null,0]
["[Add task description here]",null,null,null,null,null,0]
["[Add task description here]",null,null,null,null,null,0]
["[Add task description here]",null,null,null,null,null,0]
["Phase 1 Subtotal",null,null,null,null,null,{"$f":"SUM(G6:OFFSET(G18,-1,0))","v":108006}," Ist disbursement"]
["Milestones 2 : GHG reduction plan",null,"mm/yyyy","mm/yyyy"]
["[Add task description here]",null,null,null,null,null,{"$f":"E20+F20","v":0}]
["[Add task description here]",null,null,null,null,null,56464,null,null,null,"Necessary info"]
["[Add task description here]",null,null,null,null,null,{"$f":"E22+F22","v":0},null,null,null,"Milestones/deliverable"]
["[Add task description here]",null,null,null,null,null,0,null,null,null,"High level of activities for milestone"]
["[Add task description here]",null,null,null,null,null,0,null,null,null,"expected completion date"]
["[Add task description here]",null,null,null,null,null,4545,null,null,null,"cost for the milestone"]
["[Add task description here]",null,null,null,null,null,0,null,null,null,"What is the maximum number of disbursement?"]
["[Add task description here]",null,null,null,null,null,7845]
["[Add task description here]",null,null,null,null,null,0,null,null,null,"We need to define what a milestone is. (e.g. does it have to be a report/plan etc. or can it be an output e.g. a public consultation"]
["[Add task description here]",null,null,null,null,null,0]
["Phase 2 Subtotal",null,null,null,null,null,{"$f":"SUM(G20:OFFSET(G30,-1,0))","v":68854},"2nd Disbursement "]
["Phase 3: Evaluate and make recommendations",null,"mm/yyyy","mm/yyyy"]
["[Add task description here]",null,null,null,null,null,{"$f":"E32+F32","v":0}]
["[Add task description here]",null,null,null,null,null,{"$f":"E33+F33","v":0}]
["[Add task description here]",null,null,null,null,null,0]
["[Add task description here]",null,null,null,null,null,0]
["[Add task description here]",null,null,null,null,null,0]
["[Add task description here]",null,null,null,null,null,0]
["[Add task description here]",null,null,null,null,null,0]
["[Add task description here]",null,null,null,null,null,4546]
["[Add task description here]",null,null,null,null,null,0]
["[Add task description here]",null,null,null,null,null,0]
["Phase 3 Subtotal",null,null,null,null,null,{"$f":"SUM(G32:OFFSET(G42,-1,0))","v":4546},"Final disbursement"]
["Phase 4: Reporting",null,"mm/yyyy","mm/yyyy"]
["[Add task description here]",null,null,null,null,null,{"$f":"E44+F44","v":0}]
["[Add task description here]",null,null,null,null,null,0]
["[Add task description here]",null,null,null,null,null,0]
["[Add task description here]",null,null,null,null,null,0]
["[Add task description here]",null,null,null,null,null,0]
["[Add task description here]",null,null,null,null,null,0]
["[Add task description here]",null,null,null,null,null,0]
["[Add task description here]",null,null,null,null,null,0]
["[Add task description here]",null,null,null,null,null,0]
["[Add task description here]",null,null,null,null,null,0]
["Phase 4 Subtotal",null,null,null,null,null,{"$f":"SUM(G44:OFFSET(G54,-1,0))","v":0}]
["Phase 5: Additional phase",null,"mm/yyyy","mm/yyyy"]
["[Add task description here]",null,null,null,null,null,{"$f":"E56+F56","v":0}]
["[Add task description here]",null,null,null,null,null,0]
["[Add task description here]",null,null,null,null,null,0]
["[Add task description here]",null,null,null,null,null,0]
["[Add task description here]",null,null,null,null,null,0]
["[Add task description here]",null,null,null,null,null,0]
["[Add task description here]",null,null,null,null,null,0]
["[Add task description here]",null,null,null,null,null,0]
["[Add task description here]",null,null,null,null,null,0]
["[Add task description here]",null,null,null,null,null,0]
["Phase 5 Subtotal",null,null,null,null,null,{"$f":"SUM(G56:OFFSET(G66,-1,0))","v":0}]
["Phase 6: Additional phase",null,"mm/yyyy","mm/yyyy"]
["[Add task description here]",null,null,null,null,null,{"$f":"E68+F68","v":0}]
["[Add task description here]",null,null,null,null,null,0]
["[Add task description here]",null,null,null,null,null,0]
["[Add task description here]",null,null,null,null,null,0]
["[Add task description here]",null,null,null,null,null,0]
["[Add task description here]",null,null,null,null,null,0]
["[Add task description here]",null,null,null,null,null,0]
["[Add task description here]",null,null,null,null,null,0]
["[Add task description here]",null,null,null,null,null,0]
["[Add task description here]",null,null,null,null,null,0]
["Phase 6 Subtotal",null,null,null,null,null,{"$f":"SUM(G68:OFFSET(G78,-1,0))","v":0}]
["Subtotal - Cash costs:",null,null,null,{"$f":"SUM(E6:OFFSET(E79,-1,0))","v":0},{"$f":"SUM(F6:OFFSET(F79,-1,0))","v":0},{"$f":"E79+F79","v":0}]
["In-kind costs (Lead applicant - staff time)  - Change ONLY if less than 10% of Eligible Cash Costs",null,null,null,{"$f":"ROUNDDOWN((0.1*E79), -2)","v":0},0,{"$f":"E80+F80","v":0}]
["In-kind costs (Other)",null,null,null,"n/a",0,{"$f":"F81","v":0}]
["Total Costs",null,null,null,{"$f":"E79+E80","v":0},{"$f":"F79+F80+F81","v":0},{"$f":"SUM(E82,F82)","v":0}]
[]
[null,null,null,null,"Total Eligible Costs",null,{"$f":"E82","v":0}]
[]
[null,"NB: Click on the Calculate Budget button to round off all figures to the nearest $100."]
[]
[]
["Contingency costs: Have you included room for contingencies in some or all of your task costs? Please explain."]
["[Add explanation about contingency here]"]
[]
["Other Notes:"]
["[Add any other relevant details about your workplan and budget here]"]